Cogmind - Beta 11.1 @@@ ROGUE MODE // 2022.10.27 @ 19:28:27 Player: kawyua Result: Destroyed by P-70 Sage with Tesla Rifle Performance ------------- Evolutions (6) 3000 Regions Visited (12) 2400 Robots Destroyed (104) 520 Value Destroyed (3959) 3959 Prototype IDs (7) 140 Alien Tech Used (0) 0 Bonus (686) 686 TOTAL SCORE: 10705 Bonus ------- High Alert Combat Kills 280 Follower Combat Kills 454 Network Hubs Disabled 200 Friendly Fire -248 Cogmind --------- Core Integrity 0/1150 Matter 160/300 Energy 98/100 System Corruption 0% Temperature Cool (0) Movement Core (50) Location -4/Hub_04(d) Parts ------- > --- POWER (2) -------- (None) > --- PROPULSION (5) --- (None) > --- UTILITY (10) ----- Improved System Guard > --- WEAPON (2) ------- Powered Hammer > --- INVENTORY (5) ---- Improved Antigrav System Advanced Targeting Computer Advanced Plasma Cannon Peak State ------------ > --- POWER ------------ Micro Fission Core Mini Fusion Reactor > --- PROPULSION ------- Cooled VTOL Module Cooled VTOL Module Impulse Thruster Field Propulsion Array > --- UTILITY ---------- Advanced Power Amplifier Advanced Cooling System Advanced Weight Redist. System Structural Scanner Enhanced Optical Array Advanced Signal Interpreter Advanced Terrain Scanner Terrain Scan Processor Advanced Transmission Jammer Advanced Reaction Control System > --- WEAPON ----------- Advanced Plasma Cannon Lance > --- INVENTORY -------- Light Deuterium Engine Cooled VTOL Module Field Propulsion Drive Advanced Cryofiber Web Micro-nuke Launcher [Rating: 107] Favorites ----------- Power Ion Engine Engine Ion Engine Power Core Micro Fission Core Reactor Mini Fusion Reactor Propulsion Light Treads Treads Light Treads Leg Aluminum Leg Wheel Wheel Flight Unit Cooled VTOL Module Utility High-capacity Storage Unit Device Structural Scanner Storage High-capacity Storage Unit Processor Terrain Scan Processor Hackware System Shield Protection Medium Armor Plating Weapon Light Assault Rifle Energy Gun Small Laser Energy Cannon Advanced Plasma Cannon Ballistic Gun Light Assault Rifle Ballistic Cannon Battle Cannon Launcher Grenade Launcher Special Weapon Mining Laser Impact Weapon Hammer Slashing Weapon Katana Piercing Weapon Lance Special Melee Weapon Datajack Build | -11 -10 -10 -9 -8 -7 -6 -5 -4 -4 -4 -4 -4 ------- Run | Scr Mat Min Mat Mat Fac Fac Fac Fac Ext Cet Arc Hub Slots Evolved 12 | . . . 2 2 2 2 2 2 . . . . Power 1 | . . . . . . 1 . . . . . . Propulsion 3 | . . . 1 1 . . 1 . . . . . Utility 8 | . . . 1 1 2 1 1 2 . . . . Weapon . | . . . . . . . . . . . . . Parts Attached 165 | 5 9 16 38 42 17 9 5 13 . 2 . 9 Power 19 | 1 1 . 1 7 2 1 2 2 . 1 . 1 Engine 12 | 1 1 . 1 5 2 . 1 . . 1 . . Core 6 | . . . . 2 . 1 1 1 . . . 1 Reactor 1 | . . . . . . . . 1 . . . . Propulsion 40 | 2 2 2 10 14 4 . 1 3 . . . 2 Treads 13 | . 2 . 8 3 . . . . . . . . Leg 7 | . . 2 1 4 . . . . . . . . Wheel 3 | 2 . . 1 . . . . . . . . . Hover . | . . . . . . . . . . . . . Flight 17 | . . . . 7 4 . 1 3 . . . 2 Utility 55 | 1 2 5 11 10 7 6 2 6 . . . 5 Device 28 | . . 3 3 5 2 3 2 6 . . . 4 Storage 4 | 1 2 . 1 . . . . . . . . . Processor 8 | . . . . 3 2 2 . . . . . 1 Hackware 3 | . . . . . 2 1 . . . . . . Protection 12 | . . 2 7 2 1 . . . . . . . Artifact . | . . . . . . . . . . . . . Weapon 51 | 1 4 9 16 11 4 2 . 2 . 1 . 1 Energy Gun 10 | 1 . 1 5 3 . . . . . . . . Energy Cannon 2 | . . . . . 1 . . 1 . . . . Ballistic Gun 14 | . 3 4 3 4 . . . . . . . . Ballistic Cannon 2 | . . 1 1 . . . . . . . . . Launcher 10 | . . 1 2 2 2 2 . . . 1 . . Special Weapon 1 | . . 1 . . . . . . . . . . Impact Weapon 9 | . 1 1 5 . 1 . . . . . . 1 Slashing Weapon 1 | . . . . 1 . . . . . . . . Piercing Weapon 1 | . . . . . . . . 1 . . . . Special Melee Weapon 1 | . . . . 1 . . . . . . . . Unidentified Prototypes 7 | . . . 1 3 2 . . 1 . . . . Parts Lost 60 | . 4 4 6 13 1 1 2 4 1 14 1 9 Power 11 | . 1 1 . 2 1 . 1 1 . 3 . 1 Propulsion 17 | . 2 1 2 5 . . . 1 . 3 . 3 Utility 21 | . . . 2 3 . 1 . 2 1 7 1 4 Weapon 11 | . 1 2 2 3 . . 1 . . 1 . 1 Highest Loss Streak 7 | . 3 3 2 3 1 1 2 6 1 7 1 6 To Critical Strikes . | . . . . . . . . . . . . . Average Slot Usage (%) 88 | . 87 87 95 93 95 98 99 90 91 50 14 17 Engine 8 | . 14 9 7 6 6 6 11 3 . . . . Core 1 | . . . . 1 . 5 . 4 5 . . 1 Treads 13 | . 15 20 21 16 . . . . . . . . Leg 4 | . . 7 6 10 . . . . . . . . Wheel 2 | . 8 . 4 . . . . . . . . . Flight 6 | . . . . 8 29 26 29 25 21 15 5 7 Device 12 | . . 8 10 19 20 20 22 28 33 9 . 2 Storage 9 | . 20 14 11 6 . . . . . . . . Processor 3 | . . . . 1 13 18 17 15 15 14 4 2 Protection 4 | . . . 11 4 7 6 5 . . . . . Energy Gun 4 | . 1 . 10 7 . . . . . . . . Ballistic Gun 9 | . 25 11 5 7 . . . . . . . . Ballistic Cannon 1 | . . 4 1 . . . . . . . . . Launcher 1 | . . 4 . . 2 5 5 . . 2 . . Impact Weapon 2 | . . 4 2 . 1 6 5 1 . . . 1 Naked Turns . | . . . . . . . . . . . . . Heaviest Build 67 | 11 67 49 61 62 23 29 34 36 36 34 3 10 Greatest Support 80 | 20 40 40 60 80 30 30 36 41 41 41 5 12 Greatest Overweight (x) 4 | 3 3 2 4 3 1 . . . . 1 . . Average Overweight (x) . | 1 1 1 1 . . . . . . . . . Largest Inventory Capacity 20 | 8 20 20 20 20 5 5 5 5 5 5 5 5 Average Capacity 14 | 7 17 20 20 16 5 5 5 5 5 5 5 5 Most Carried 20 | 8 19 20 20 20 5 5 5 5 5 5 4 5 Average Carried 13 | 5 11 19 18 16 4 4 4 4 5 4 4 4 Final Capacity 20 | 8 20 20 20 5 5 5 5 5 5 5 5 5 Final Carried 20 | 7 19 20 20 5 5 5 4 5 5 4 4 3 Class Distribution -------------------- 45% | Mutant 28% | Scavenger-Mutant 12% | Scout 6% | Sprinter 6% | Infiltrator-Ninja Dominant Class ---------------- Mutant | -10/Materials Mutant | -10/Mines Scavenger-Mutant | -9/Materials Scavenger-Mutant | -8/Materials Scout | -7/Factory Scout | -6/Factory Scout | -5/Factory Infiltrator-Ninja | -4/Factory Infiltrator-Ninja | -4/Extension Sprinter | -4/Cetus Mutant | -4/Archives Mutant | -4/Hub_04(d) Resources | -11 -10 -10 -9 -8 -7 -6 -5 -4 -4 -4 -4 -4 ----------- Run | Scr Mat Min Mat Mat Fac Fac Fac Fac Ext Cet Arc Hub Matter Collected 2691 | 214 239 401 601 541 189 112 66 66 106 24 88 44 Remotely . | . . . . . . . . . . . . . Salvage Created 3139 | . 397 508 868 729 192 25 39 78 149 41 88 25 Parts 175 | . 28 30 48 37 10 . 3 3 5 4 4 3 Haulers Intercepted . | . . . . . . . . . . . . . Recyclers Shooed 1 | . . 1 . . . . . . . . . . Parts Field Recycled . | . . . . . . . . . . . . . Retrieved Matter . | . . . . . . . . . . . . . Parts Self-Destructed . | . . . . . . . . . . . . . Prevented . | . . . . . . . . . . . . . Kills | -11 -10 -10 -9 -8 -7 -6 -5 -4 -4 -4 -4 -4 ------- Run | Scr Mat Min Mat Mat Fac Fac Fac Fac Ext Cet Arc Hub Combat Hostiles Destroyed 86 | . 11 16 24 16 . . 4 3 3 8 1 . Melee 6 | . . 3 1 . . . . 1 . . 1 . Guns 42 | . 11 2 17 12 . . . . . . . . Cannons 15 | . . 8 2 . . . . 2 3 . . . AOE 21 | . . 2 3 4 . . 4 . . 8 . . Classes Destroyed 14 | . 4 3 3 1 1 . 1 . . 1 . . Worker 1 | . 1 . . . . . . . . . . . Builder 6 | . 1 . 1 . 3 . . . . . . 1 Tunneler 1 | . . 1 . . . . . . . . . . Recycler 3 | . . 1 . . 2 . . . . . . . Operator 2 | . . . . . 2 . . . . . . . Drone 1 | . . . . . . . 1 . . . . . Watcher 6 | . . . . 2 . 1 . . 2 1 . . Swarmer 25 | . 3 2 6 4 . . 4 3 3 . . . Grunt 38 | . 8 13 9 8 . . . . . . . . Brawler 1 | . . . 1 . . . . . . . . . Duelist 1 | . . . 1 . . . . . . . . . Sentry 12 | . . . 7 4 . . . . . . 1 . Programmer 4 | . . . . . . . . . . 4 . . Cetus Guard 4 | . . . . . . . . . . 4 . . Assembled 1 | . . 1 . . . . . . . . . . Best Kill Streak 6 | . 4 4 4 5 6 1 4 3 2 5 1 1 Combat Bots Only 5 | . 3 4 3 5 . . 4 3 2 4 1 . Max Kills in Single Turn 3 | . 1 1 1 2 3 1 3 1 1 2 1 1 Gunslinging . | . . . . . . . . . . . . . Exploded 2 | . . 1 1 2 . . 2 . . 2 . . Melee 1 | . . 1 1 . . . . 1 . . 1 . Uniques/NPCs Destroyed . | . . . . . . . . . . . . . Combat | -11 -10 -10 -9 -8 -7 -6 -5 -4 -4 -4 -4 -4 -------- Run | Scr Mat Min Mat Mat Fac Fac Fac Fac Ext Cet Arc Hub Damage Taken 7417 | . 440 804 1356 1554 176 213 182 328 299 971 122 972 Core 1858 | . 61 170 114 210 48 104 . 80 92 278 97 604 Absorbed by Shields 46 | . . . . . . . . . 40 . . 6 Redirected to Shielding 109 | . . 10 7 41 . 16 26 9 . . . . Core Remaining (%) 74 | 100 . 7 71 61 93 87 100 . . . . . Volleys Fired 293 | . 40 45 65 63 8 . 4 9 42 17 . . Largest 2 | . 2 2 2 2 1 . 1 1 1 1 . . Hottest 98 | . 60 59 96 88 65 . 43 98 98 49 . . Shots Fired 468 | . 80 70 125 113 8 . 4 9 42 17 . . Gun 338 | . 80 38 108 112 . . . . . . . . Cannon 99 | . . 30 13 . 5 . . 9 42 . . . Launcher 31 | . . 2 4 1 3 . 4 . . 17 . . Special . | . . . . . . . . . . . . . Kinetic 240 | . 65 68 45 62 . . . . . . . . Thermal 197 | . 15 . 76 50 5 . . 9 42 . . . Explosive 31 | . . 2 4 1 3 . 4 . . 17 . . Electromagnetic . | . . . . . . . . . . . . . Robot Hit Streak 19 | . 12 6 19 17 8 . . 2 4 3 . . Robot Miss Streak 3 | . 3 2 2 2 1 . 3 1 3 2 . . Penetration Max . | . . . . . . . . . . . . . Secondary Targets 3 | . . . . 3 . . . . . . . . Max Gunslinging Chain 1 | . . . . 1 . . . . . . . . Shots Hit Robots 329 | . 57 51 96 87 3 1 . 7 15 9 3 . Core Hits 183 | . 21 19 43 37 9 . 5 2 6 38 1 2 Critical Kills 1 | . 1 . . . . . . . . . . . Critical Parts Destroyed 3 | . 1 2 . . . . . . . . . . Critical Strikes 11 | . 2 2 2 3 . . . . 1 . 1 . Burn 4 | . . . 1 3 . . . . . . . . Destroy 3 | . 2 . 1 . . . . . . . . . Smash 2 | . . 2 . . . . . . . . . . Impale 2 | . . . . . . . . . 1 . 1 . Melee Attacks 127 | . 3 15 26 13 7 15 . 8 11 11 12 6 Impact 71 | . 3 15 26 3 2 15 . 3 . . . 4 Slashing 10 | . . . . 5 5 . . . . . . . Piercing 41 | . . . . . . . . 5 11 11 12 2 Sneak Attacks 3 | . . 1 . 1 . . . . . . 1 . Combat Hostiles . | . . . . . . . . . . . . . Follow-up Attacks . | . . . . . . . . . . . . . Damage Inflicted 9493 | . 503 1073 1730 1558 767 53 381 236 634 2276 149 133 Guns 2929 | . 503 195 1009 1222 . . . . . . . . Cannons 989 | . . 428 93 . . . . 164 304 . . . Explosions 4173 | . . 222 228 256 677 . 381 . . 2276 . 133 Melee 1382 | . . 228 380 80 90 53 . 72 330 . 149 . Ramming 20 | . . . 20 . . . . . . . . . Kinetic 2070 | . 389 623 410 648 . . . . . . . . Thermal 2051 | . 114 . 692 777 . . . 164 304 . . . Explosive 3837 | . . 222 228 53 677 . 381 . . 2276 . . Electromagnetic 133 | . . . . . . . . . . . . 133 Impact 733 | . . 228 380 . . 53 . 72 . . . . Slashing 170 | . . . . 80 90 . . . . . . . Piercing 479 | . . . . . . . . . 330 . 149 . Highest Corruption 5 | . . . 4 . . 1 1 1 1 5 5 5 Average Corruption 3 | . . . 4 . . 1 1 1 1 3 5 5 Corruption Purged . | . . . . . . . . . . . . . Corruption Blocked . | . . . . . . . . . . . . . Effects 38 | . . . 25 . . . 1 1 2 6 . 3 Message Errors 12 | . . . 9 . . . . . . 2 . 1 Matter Fused 2 | . . . 2 . . . . . . . . . Heat Flow Errors 4 | . . . 3 . . . . . . 1 . . Energy Discharges 10 | . . . 6 . . . 1 . 1 1 . 1 Parts Rejected 3 | . . . 2 . . . . . 1 . . . Data Loss (minor) 3 | . . . . . . . . 1 . 1 . 1 Data Loss (major) 1 | . . . 1 . . . . . . . . . Misfires 2 | . . . 2 . . . . . . . . . Alerts 1 | . . . . . . . . . . 1 . . Overload Shots . | . . . . . . . . . . . . . Overflow Damage 372 | . . 124 29 21 81 18 35 7 9 14 28 6 Projectiles 13 | . . . 6 . . . . 7 . . . . Explosions 194 | . . 29 8 21 81 . 35 . . 14 . 6 Melee 165 | . . 95 15 . . 18 . . 9 . 28 . Knockbacks 5 | . . 1 3 . . . . 1 . . . . Impact 2 | . . . 1 . . . . 1 . . . . Kinetic 3 | . . 1 2 . . . . . . . . . Secondary . | . . . . . . . . . . . . . Self-Inflicted Damage 482 | . . . 44 121 152 . 56 . . . . 109 Shots 8 | . . . 2 2 2 . 1 . . . . 1 Rammed 2 | . . . 2 . . . . . . . . . Targets Rammed 2 | . . . 2 . . . . . . . . . Kicked . | . . . . . . . . . . . . . Crushed . | . . . . . . . . . . . . . Highest Temperature 443 | . 76 26 443 66 80 . 9 344 90 117 . . Average Temperature 66 | . 23 12 117 18 35 . 5 114 31 76 . . Received Heat Transfer 2001 | . 180 357 549 729 . 6 27 . 18 45 . 90 Effects 2 | . . . 1 . . . . 1 . . . . Shutdowns 1 | . . . . . . . . 1 . . . . Energy Bleed 1 | . . . 1 . . . . . . . . . Siege Activations . | . . . . . . . . . . . . . Robots Corrupted . | . . . . . . . . . . . . . Combat Hostiles . | . . . . . . . . . . . . . Parts Fried 5 | . . 2 . . . 2 . . 1 . . . Impact Corruptions 6 | . . 4 1 . . 1 . . . . . . Robots Melted . | . . . . . . . . . . . . . Combat Hostiles . | . . . . . . . . . . . . . Parts Melted 7 | . . . 5 2 . . . . . . . . Heat Transferred 4489 | . 275 . 1749 1765 . . . 250 450 . . . Parts Sabotaged . | . . . . . . . . . . . . . Parts Stolen . | . . . . . . . . . . . . . Parts Stripped . | . . . . . . . . . . . . . Power Chain Reactions . | . . . . . . . . . . . . . Missiles Intercepted . | . . . . . . . . . . . . . Alert | -11 -10 -10 -9 -8 -7 -6 -5 -4 -4 -4 -4 -4 ------- Run | Scr Mat Min Mat Mat Fac Fac Fac Fac Ext Cet Arc Hub Peak Influence 842 | . 257 194 490 490 572 521 424 457 842 706 382 446 Initial 370 | . . 1 31 178 218 237 45 207 223 370 272 133 Average 238 | . 84 82 334 257 391 300 218 326 392 583 314 191 Maximum Alert Level 3 | . 1 . 2 2 2 2 2 2 3 3 1 2 Low Security (%) 45 | 100 91 100 16 19 . 4 52 . 30 . . 69 Level 1 32 | . 8 . 37 77 41 79 34 93 21 8 100 12 Level 2 21 | . . . 46 2 58 15 13 6 36 87 . 18 Level 3 . | . . . . . . . . . 11 4 . . Level 4 . | . . . . . . . . . . . . . Level 5 . | . . . . . . . . . . . . . High Security . | . . . . . . . . . . . . . Max Security . | . . . . . . . . . . . . . Squads Dispatched 16 | . 2 . 4 1 1 1 1 2 . 1 . 3 Investigation 3 | . 1 . . . . . . . . 1 . 1 Extermination 1 | . . . . . . 1 . . . . . . Reinforcement 10 | . 1 . 3 1 1 . 1 2 . . . 1 Assault 2 | . . . 1 . . . . . . . . 1 Garrison . | . . . . . . . . . . . . . Intercept . | . . . . . . . . . . . . . Searches Triggered 2 | . . . . . . 1 . . 1 . . . Construction Impeded 1 | . . . . . . . . . . . . 1 Haulers Reinforced . | . . . . . . . . . . . . . Active Scanning Responses . | . . . . . . . . . . . . . Cargo Convoy Interrupts . | . . . . . . . . . . . . . Stealth | -11 -10 -10 -9 -8 -7 -6 -5 -4 -4 -4 -4 -4 --------- Run | Scr Mat Min Mat Mat Fac Fac Fac Fac Ext Cet Arc Hub Distress Signals 21 | . 4 1 5 1 . 2 1 1 . 2 . 4 Communications Jammed 25 | . . . . . . . . 3 22 . . . Distress Signals 25 | . . . . . . . . 3 22 . . . Times Spotted 249 | . 29 21 47 23 10 12 12 18 28 18 5 26 Peak Tracking Total 23 | . 4 3 6 8 4 9 6 6 5 6 3 23 Tactical Retreats 36 | . 2 8 6 . 2 2 3 5 3 1 . 4 Traps | -11 -10 -10 -9 -8 -7 -6 -5 -4 -4 -4 -4 -4 ------- Run | Scr Mat Min Mat Mat Fac Fac Fac Fac Ext Cet Arc Hub Traps Triggered 7 | . 2 . . . 1 1 . 1 . . . 2 Indirectly . | . . . . . . . . . . . . . Trap Hack Attempts . | . . . . . . . . . . . . . Triggered . | . . . . . . . . . . . . . Disarmed . | . . . . . . . . . . . . . Reprogrammed . | . . . . . . . . . . . . . Reused . | . . . . . . . . . . . . . Traps Extracted . | . . . . . . . . . . . . . Installed . | . . . . . . . . . . . . . Triggered . | . . . . . . . . . . . . . Machines | -11 -10 -10 -9 -8 -7 -6 -5 -4 -4 -4 -4 -4 ---------- Run | Scr Mat Min Mat Mat Fac Fac Fac Fac Ext Cet Arc Hub Machines Disabled 31 | . . . 1 1 8 . 4 . 2 7 2 6 Max in Single Turn 6 | . . . 1 1 3 . 4 . 1 2 1 6 Garrison Access 2 | . . . . . . . . 1 . . . 1 Network Hub 1 | . . . . . . . . . . . . 1 Energy Cycler 1 | . . . . . . . . . 1 . . . Machines Sabotaged . | . . . . . . . . . . . . . Garrisons Compromised 1 | . . . . . . 1 . . . . . . Overloaded Fab Kills . | . . . . . . . . . . . . . Hacking | -11 -10 -10 -9 -8 -7 -6 -5 -4 -4 -4 -4 -4 --------- Run | Scr Mat Min Mat Mat Fac Fac Fac Fac Ext Cet Arc Hub Machines Accessed 54 | . 7 . 6 5 6 9 2 3 11 3 . 2 Terminals 43 | . 7 . 6 4 4 4 1 1 11 3 . 2 Fabricators 2 | . . . . . . 2 . . . . . . Repair Stations 2 | . . . . . . 1 . 1 . . . . Recycling Units 3 | . . . . . 1 1 1 . . . . . Scanalyzers 1 | . . . . . . 1 . . . . . . Garrison Access 3 | . . . . 1 1 . . 1 . . . . Total Hacks 121 | . 22 . 13 11 10 20 5 3 22 9 . 6 Successful 59 | . 11 . 3 3 6 10 4 2 13 3 . 4 Failed 62 | . 11 . 10 8 4 10 1 1 9 6 . 2 Catastrophic 11 | . . . 1 2 1 2 . . 2 2 . 1 Database Lockouts . | . . . . . . . . . . . . . Manual 98 | . 21 . 12 10 8 11 3 3 16 5 3 6 Terminals 105 | . 22 . 13 10 8 12 2 1 22 9 . 6 Fabricators 3 | . . . . . . 3 . . . . . . Repair Stations 3 | . . . . . . 2 . 1 . . . . Recycling Units 5 | . . . . . 1 1 3 . . . . . Scanalyzers 2 | . . . . . . 2 . . . . . . Garrison Access 3 | . . . . 1 1 . . 1 . . . . Terminal Hacks 25 | . 3 . . 1 3 4 . . 8 3 . 3 Record 3 | . . . . . . . . . . 3 . . Open Door 3 | . . . . . . . . . 3 . . . Terminal Index 5 | . 1 . . 1 1 . . . 1 . . 1 Alert Level 4 | . 1 . . . . 2 . . 1 . . . Unreport Threat 9 | . 1 . . . 1 2 . . 3 . . 2 Hauler Manifests 1 | . . . . . 1 . . . . . . . Fabricator Hacks 1 | . . . . . . 1 . . . . . . Network Status 1 | . . . . . . 1 . . . . . . Repair Station Hacks . | . . . . . . . . . . . . . Recycling Unit Hacks 2 | . . . . . . . 2 . . . . . Report Inventory 1 | . . . . . . . 1 . . . . . Retrieve Components 1 | . . . . . . . 1 . . . . . Scanalyzer 2 | . . . . . . 2 . . . . . . Insert Component 1 | . . . . . . 1 . . . . . . Analyze 1 | . . . . . . 1 . . . . . . Garrison Access Hacks 1 | . . . . . . . . 1 . . . . Seal Access 1 | . . . . . . . . 1 . . . . Unauthorized Hacks 28 | . 8 . 3 2 3 3 2 1 5 . . 1 Terminals 25 | . 8 . 3 2 2 3 1 . 5 . . 1 Assimilate 11 | . 3 . 2 . . 2 . . 4 . . . Botnet 7 | . 4 . . 1 1 . . . . . . 1 Operators 7 | . 1 . 1 1 1 1 1 . 1 . . . Fabricators . | . . . . . . . . . . . . . Repair Stations 1 | . . . . . . . . 1 . . . . Mechanics 1 | . . . . . . . . 1 . . . . Recycling Units 2 | . . . . . 1 . 1 . . . . . Recyclers 2 | . . . . . 1 . 1 . . . . . Scanalyzers . | . . . . . . . . . . . . . Garrison Access . | . . . . . . . . . . . . . Data Cores Recovered . | . . . . . . . . . . . . . Used . | . . . . . . . . . . . . . Hacking Detections 45 | . 4 . 6 4 5 9 1 2 9 3 . 2 Full Trace Events 1 | . . . . . . . . . . 1 . . Feedback Events 1 | . . . . . . . . . . 1 . . Corruption 1 | . . . . . . . . . . 1 . . Feedback Blocked . | . . . . . . . . . . . . . Robot Schematics Acquired . | . . . . . . . . . . . . . Robots Built . | . . . . . . . . . . . . . Authchips . | . . . . . . . . . . . . . Time . | . . . . . . . . . . . . . Total Robot Build Rating . | . . . . . . . . . . . . . Part Schematics Acquired 1 | . . . . . . 1 . . . . . . Parts Built . | . . . . . . . . . . . . . Authchips . | . . . . . . . . . . . . . Time . | . . . . . . . . . . . . . Total Part Build Rating . | . . . . . . . . . . . . . Parts Repaired . | . . . . . . . . . . . . . Time . | . . . . . . . . . . . . . Parts Recycled . | . . . . . . . . . . . . . Recycled Matter . | . . . . . . . . . . . . . Retrieved Matter . | . . . . . . . . . . . . . Retrieved Components 1 | . . . . . . . 1 . . . . . Parts Scanalyzed 1 | . . . . . . 1 . . . . . . Part Schematics Acquired 1 | . . . . . . 1 . . . . . . Parts Damaged . | . . . . . . . . . . . . . Bothacking | -11 -10 -10 -9 -8 -7 -6 -5 -4 -4 -4 -4 -4 ------------ Run | Scr Mat Min Mat Mat Fac Fac Fac Fac Ext Cet Arc Hub Used RIF Installer . | . . . . . . . . . . . . . Robots Hacked 2 | . . . . 2 . . . . . . . . Non-combat 2 | . . . . 2 . . . . . . . . Combat . | . . . . . . . . . . . . . Robot Hacks Applied 2 | . . . . 2 . . . . . . . . parse_system 1 | . . . . 1 . . . . . . . . check_alert 1 | . . . . 1 . . . . . . . . Relay Couplers Released 1 | . . . . . . . . . . . . 1 Machine Destruction 1 | . . . . . . . . . . . . 1 Fabnet Peak Effective % . | . . . . . . . . . . . . . Robots Rewired . | . . . . . . . . . . . . . Allies Hacked . | . . . . . . . . . . . . . Hacks Repelled . | . . . . . . . . . . . . . Allies | -11 -10 -10 -9 -8 -7 -6 -5 -4 -4 -4 -4 -4 -------- Run | Scr Mat Min Mat Mat Fac Fac Fac Fac Ext Cet Arc Hub Total Allies 10 | . 1 . 1 . . 2 . . 6 . . . Largest Group 5 | . 1 1 1 . . 1 . . 5 . . . Highest-Rated Group 289 | . 10 10 10 . . 26 . . 289 . . . Highest-Rated Ally 159 | . 10 10 10 . . 26 . . 159 . . . Total Orders 3 | . . . 1 . . . 2 . . . . . STAY 1 | . . . 1 . . . . . . . . . EXPLORE 2 | . . . . . . . 2 . . . . . Ally Attacks 54 | . . . . . . . . . 54 . . . Total Damage 1596 | . . . . . . . . . 1596 . . . Kills 13 | . . . . . . . . . 13 . . . Allies Corrupted 1 | . . 1 . . . . . . . . . . Allies Melted . | . . . . . . . . . . . . . Intel | -11 -10 -10 -9 -8 -7 -6 -5 -4 -4 -4 -4 -4 ------- Run | Scr Mat Min Mat Mat Fac Fac Fac Fac Ext Cet Arc Hub Robot Analysis Total . | . . . . . . . . . . . . . Derelict Logs Recovered 2 | . . 2 . . . . . . . . . . Drone Launches 2 | . . . . . . . 2 . . . . . Drone Recoveries . | . . . . . . . . . . . . . Exploration | -11 -10 -10 -9 -8 -7 -6 -5 -4 -4 -4 -4 -4 ------------- Run | Scr Mat Min Mat Mat Fac Fac Fac Fac Ext Cet Arc Hub Turns Passed 7659 | 120 1482 1220 2029 792 322 371 140 326 423 217 52 165 Spaces Moved 7256 | 81 624 373 875 536 880 946 418 880 825 393 60 365 Core 84 | 43 . . . . . . . . . . . 41 Treads 1128 | . 330 285 398 115 . . . . . . . . Legs 224 | . . 88 88 48 . . . . . . . . Wheels 721 | 38 294 . 389 . . . . . . . . . Hover . | . . . . . . . . . . . . . Flight 5099 | . . . . 373 880 946 418 880 825 393 60 324 Fastest Speed 23 | 50 80 240 135 26 23 27 25 24 28 28 35 32 Average Speed 75 | 129 184 244 180 81 26 27 25 25 28 31 35 36 Slowest Speed 400 | 200 400 260 240 275 96 27 25 28 28 106 35 50 Overloaded Moves 54 | . . . . . 28 . . . . 26 . . Propulsion Burnouts . | . . . . . . . . . . . . . Robots Hopped 14 | . . . . . . 2 2 2 2 . . 6 Cave-ins Triggered . | . . . . . . . . . . . . . Exploration Rate (%) 48 | 4 71 82 60 48 27 31 14 24 69 74 76 44 Regions Visited 12 Branch Regions 5 Pre-discovered Areas 1 | . . 1 . . . . . . . . . . Known Exits Taken 7 | . . . . 1 1 1 1 1 1 1 . . Unknown Exits Taken 5 | 1 1 1 1 . . . . . . . 1 . Scrap Searched 1 | . . 1 . . . . . . . . . . Spaces Dug 71 | . 3 . 3 3 6 14 . 6 27 . 5 4 Terrain Destroyed 578 | . 3 21 28 42 47 14 61 10 31 154 5 162 Melee 45 | . 3 . 3 3 5 14 . 6 2 . 5 4 Projectile 40 | . . 4 2 . 1 . . 4 29 . . . AOE 493 | . . 17 23 39 41 . 61 . . 154 . 158 Terrain Rammed . | . . . . . . . . . . . . . Walls Destroyed . | . . . . . . . . . . . . . Machines Disabled . | . . . . . . . . . . . . . Actions | -11 -10 -10 -9 -8 -7 -6 -5 -4 -4 -4 -4 -4 --------- Run | Scr Mat Min Mat Mat Fac Fac Fac Fac Ext Cet Arc Hub Total 8720 | 95 884 587 1156 763 948 1030 446 954 954 451 71 381 Wait 681 | . 182 133 112 56 12 49 14 26 67 29 . 1 Move 7216 | 80 623 372 874 535 879 941 413 875 820 392 59 353 Hop 14 | . . . . . . 2 2 2 2 . . 6 Pick Up 116 | 10 22 4 21 23 9 7 4 10 . . . 6 Fast Attach 49 | 2 . 2 4 14 14 2 2 7 . . . 2 Attach 55 | 3 7 2 12 13 1 4 2 3 . 1 . 7 Detach 1 | . . . . . . 1 . . . . . . Swap 62 | . 2 12 22 16 2 3 1 3 . 1 . . Drop 92 | . 5 2 18 30 16 6 4 11 . . . . Fire 293 | . 40 45 65 63 8 . 4 9 42 17 . . Melee 127 | . 3 15 26 13 7 15 . 8 11 11 12 6 Ram 1 | . . . 1 . . . . . . . . . Kick . | . . . . . . . . . . . . . Crush 1 | . . . 1 . . . . . . . . . Escape Stasis 12 | . . . . . . . . . 12 . . . Rewire . | . . . . . . . . . . . . . Trap . | . . . . . . . . . . . . . Miscellaneous . | . . . . . . . . . . . . . Route ------- -11/Scrapyard -10/Materials (discovered 4 exits: *Mat x2 / [*Min x2]) -10/Mines -9/Materials (discovered 2 exits: *Mat / [*Min]) -8/Materials -7/Factory (discovered 2 exits: *Fac / [*Low]) -6/Factory (discovered 2 exits: *Fac x2) -5/Factory -4/Factory -4/Extension (discovered 2 exits: *Res / *Cet) -4/Cetus (discovered 2 exits: *Res / *Arc) -4/Archives (discovered 2 exits: *Res / *Hub) -4/Hub_04(d) History --------- Turn | Location | Event 26 | -11/Scrapyard | Discovered new exit (range 15) 121 | -11/Scrapyard | Entered Materials 250 | -10/Materials | Discovered new exit (range 8) 314 | -10/Materials | Build established: Mutant 534 | -10/Materials | Discovered new exit (range 16) 636 | -10/Materials | Lost 3 parts (1p2n) 737 | -10/Materials | Discovered new exit (range 8) 966 | -10/Materials | Discovered new exit (range 16) 1603 | -10/Materials | Entered Mines 1603 | -10/Mines | Accompanied by 1 ally 1655 | -10/Mines | A weapon hastily lodged in a ceiling crevice suddenly fell to the ground 1941 | -10/Mines | Excavation squad dispatched 1941 | -10/Mines | A large section of the Mines collapsed 2191 | -10/Mines | Excavation squad dispatched 2441 | -10/Mines | Excavation squad dispatched 2465 | -10/Mines | Core integrity fell below 50% 2491 | -10/Mines | Core integrity fell below 20% 2515 | -10/Mines | Lost 3 parts (1p1n1w) 2691 | -10/Mines | Excavation squad dispatched 2694 | -10/Mines | Learned Materials stockpile data 2720 | -10/Mines | Learned location of Zion (-7) 2807 | -10/Mines | Discovered new exit (range 5) 2823 | -10/Mines | Entered Materials 2823 | -9/Materials | Evolved 2 slots: Propulsion x1, Utility x1 3340 | -9/Materials | Discovered new exit (range 15) 3624 | -9/Materials | Build established: Scavenger-Mutant 3925 | -9/Materials | Discovered new exit (range 8) 4823 | -9/Materials | First assault squad dispatched 4852 | -9/Materials | Entered another Materials area 4852 | -8/Materials | Evolved 2 slots: Propulsion x1, Utility x1 5607 | -8/Materials | Discovered new exit (range 13) 5643 | -8/Materials | Identified exit to Factory 5644 | -8/Materials | Entered Factory 5644 | -7/Factory | Evolved 2 slots: Utility x2 5664 | -7/Factory | Lost 3 parts (3w) 5734 | -7/Factory | Discovered new exit (range 3) 5908 | -7/Factory | Discovered new exit (range 15) 5914 | -7/Factory | Identified exit to Factory 5966 | -7/Factory | Entered another Factory area 5966 | -6/Factory | Evolved 2 slots: Power x1, Utility x1 6214 | -6/Factory | Build established: Scout 6284 | -6/Factory | Discovered new exit (range 20) 6316 | -6/Factory | Search patrols dispatched 6317 | -6/Factory | Discovered new exit (range 22) 6335 | -6/Factory | Identified exit to Factory 6337 | -6/Factory | Entered another Factory area 6337 | -5/Factory | Evolved 2 slots: Propulsion x1, Utility x1 6458 | -5/Factory | Discovered new exit (range 8) 6460 | -5/Factory | Identified exit to Factory 6477 | -5/Factory | Entered another Factory area 6477 | -4/Factory | Evolved 2 slots: Utility x2 6538 | -4/Factory | Lost 6 parts (2p1n2u1w) 6578 | -4/Factory | Spotted B-86 Titan 6799 | -4/Factory | Discovered new exit (range 7) 6801 | -4/Factory | Identified exit to Extension 6803 | -4/Factory | Entered Extension 6820 | -4/Extension | Rescued A7 6841 | -4/Extension | Rescued a captive Derelict 6841 | -4/Extension | Rescued a captive Derelict 6849 | -4/Extension | Build established: Infiltrator-Ninja 7020 | -4/Extension | Rescued a captive Derelict 7025 | -4/Extension | Rescued a captive Derelict 7034 | -4/Extension | Energy Cycler disabled 7053 | -4/Extension | Search patrols dispatched 7075 | -4/Extension | Spotted B-86 Titan 7218 | -4/Extension | Discovered new exit (range 10) 7218 | -4/Extension | Discovered new exit (range 6) 7220 | -4/Extension | Identified exit to Cetus 7221 | -4/Extension | Identified exit to Research 7225 | -4/Extension | Disrupted transfer network 7226 | -4/Extension | Entered Cetus 7229 | -4/Cetus | Spotted Cetus Guard 7230 | -4/Cetus | Spotted Cetus Guard 7230 | -4/Cetus | Spotted Cetus Guard 7230 | -4/Cetus | Spotted Cetus Guard 7235 | -4/Cetus | Discovered exit to Research (range 22) 7256 | -4/Cetus | Destroyed Cetus Guard 7261 | -4/Cetus | Destroyed Cetus Guard 7261 | -4/Cetus | Destroyed Cetus Guard 7263 | -4/Cetus | Destroyed Cetus Guard 7287 | -4/Cetus | Cetus Manufacturing Module disabled 7292 | -4/Cetus | Lost 7 parts (2p1n4u) 7340 | -4/Cetus | Discovered new exit (range 16) 7347 | -4/Cetus | Identified exit to Archives 7354 | -4/Cetus | Spotted Cetus Guard 7354 | -4/Cetus | Spotted Cetus Guard 7354 | -4/Cetus | Spotted Cetus Guard 7439 | -4/Cetus | Spotted Cetus Guard 7443 | -4/Cetus | Entered Archives 7465 | -4/Archives | Lost 5 parts (2n3u) 7477 | -4/Archives | Unable to access archive contents 7481 | -4/Archives | Discovered exit to Research (range 15) 7484 | -4/Archives | Unable to access archive contents 7494 | -4/Archives | Discovered new exit (range 4) 7495 | -4/Archives | Entered Hub_04(d) 7562 | -4/Hub_04(d) | Core integrity fell below 50% 7596 | -4/Hub_04(d) | Lost 3 parts (1n1u1w) 7598 | -4/Hub_04(d) | Spotted B-86 Titan 7625 | -4/Hub_04(d) | Network Hub disabled 7633 | -4/Hub_04(d) | Spotted Lightning 7633 | -4/Hub_04(d) | Spotted Lightning 7633 | -4/Hub_04(d) | Spotted Lightning 7638 | -4/Hub_04(d) | Spotted Lightning 7644 | -4/Hub_04(d) | Core integrity fell below 20% 7656 | -4/Hub_04(d) | Spotted Lightning 7660 | -4/Hub_04(d) | Destroyed by P-70 Sage with Tesla Rifle Last Messages --------------- 07632_ Mic. Fission Core destroyed. 07632_ Knocked back. 07634_ U-05 Engineer destroyed. [Achievement: Hunted] 07635_ Acquired 13 matter. 07639_ Cld. VTOL Module destroyed. 07643_ EMDS Slug penetrates Wall. 07644_ W-44 Eye sends out distress signal. 07645_ EMDS Slug penetrates Wall. 07650_ Penetrated by Slug. 07650_ W-44 Eye suffers critical hit (Destroy). 07650_ W-44 Eye destroyed. 07654_ Cld. VTOL Module destroyed. 07654_ Slug penetrates Wall. 07654_ Terminal disabled. 07656_ Penetrated by Slug. 07659_ Slug penetrates Wall. 07660_ Triggered Stasis Trap. 07660_ A bubble of rippling energy engulfs the area. 07660_ Field strength at 94. Map ----- +----------------------------------------------------+ | ##+########" #########+#################### """ | | ??????????#"T#??# #????????????????# """ | | ??????????####??# """ #????????????????# """ | | ????????????????# #????????????????# """ | | ????????????????# """ #????????????????# | | ????????????????# #??????????? + | | ????????????????# """ #??? ?????????####+##### | | ????????????????# #??? ?????????????????# | | ????????????????# """ #??? "?????????????????# | | ????????????????# #??? ?????????????????# | | ????????????????###????###??##+#????????????????# | | ????????????????????????????# ################# | | ????????????????????????????# # ||= / | | ????????????????????????????# # |[= " " " " # | | ????????????????????????????# # |[ " " " " # | | ????????????????????????????+ + " " " " # | | ????????????????????????????# # ! # | | ????????????????????????????# ########+######## | | ????????????????????????????# A# #??????# | | ????????????????????????????# # #??????# | | ????????????????############# # #??????# | | ???????????????? k # #??????? | | ??????????????? k + """" #??????? | | ???????????????? # """" #??????? | | ????????????????######## ## """" #??????? | | ????????????????# T ! #p@""" ## """" #??????? | | ????????????????# + T" ## ] #??????? | | ????????????????# ![ # " ###########???????? | | ????????????????# [! # phg #######???????????? | | ????????????????## ##### Y Y gh #???????????? | | ?????????????????##????#+##+######## #??????????? | | ??????????????????????# #?????# #??????????? | | ??????????????????????# """" #?????# ###########? | | ??????????????????????# """" #?????# ## #? | | ??????????????????????# """" #?????# ## ## | | ??????????????????????# """" #?????#*## ## | | ??????????????????????# ?????#%## # | | ??????????????????????#########???##!## # | | ??????????????????????????????????#" ## / | | ?????????????????????????????#######/## # | | ?????????????????????????????# # # | | ?????????????????????????????# # # | | ?????????????????????????????# #/#####/## | | ?????????????????????????????# # | | ?????????????????????????????# / | | | ?????????????????????????????# # ! = | | ?????????????????????????????# ###/######## | | ?????????????????????????????# # ## | | ?????????????????????????????# " ## | | ?????????????????????????????########## """" ## | +----------------------------------------------------+ Best States ------------- Heat Dissipation 74 Energy Generation 38 Energy Capacity 265 Matter Stores 300 Matter Capacity 300 Sight Range 22 Robot Scan Range 16 Terrain Scan Range 20 Terrain Scan Density 85 ECM Strength 1 Jamming Range 16 Power Amplification 30 Additional Mass Support 9 Corruption Containment 12 Armor Coverage 225 Resistance: KI 30 Resistance: TH 10 Core Shielding 20 Propulsion Shielding 33 Utility Shielding 33 Evasion (%) 77 Melee Accuracy 6 Recoil Reduction 4 Defensive Hacking 20 Item Schematics ----------------- Drone Bay | -6/Factory | Scanalyzed Robot Schematics ------------------ None Fabricated ------------ Nothing Alien Tech Used ----------------- None Achievements -------------- Backstab Can't Catch Me Close Call Dodgeball, But With Guns Hunted I Spy Part-time Excavator Remodeling Respectable Loadout Serviceable Loadout Significant Disruption The More The Merrier Tourist Challenges ------------ None Game ------ Seed HelicalNuclearCloak Manual? 0 Play Time 02:30:59 Cumulative 9.4 hours Start 2022.10.27 @ 15:43:47 End 2022.10.27 @ 19:28:27 Sessions 3 Manual Loads 0 Difficulty Rogue Special Mode None Game No. 2 Rogue 2 Adventurer 0 Explorer 0 Win Type - Total 0 Types 0/0/0/0/0/0/0/0/0 Lore% 1 Gallery% 13 Achievement% 16 Wizard Run 0 Options --------- ASCII 0 Keyboard 0 Movement Mouse Keybinds 0 Fullscreen 2 Font 16/SmallcapsGlow Map View 75x55 Tactical HUD 1 Map Filters NONE Filters NONE Steam 1 RUN: 8a29c21a-e2dc-4048-a920-aaf263489228